Cogmind - Beta 10.2 @@@ ROGUE MODE // 2020.10.30 @ 05:09:22 Player: Wedge Result: Destroyed by G-47 Trooper with Particle Gun Performance ------------- Evolutions (0) 0 Regions Visited (1) 200 Robots Destroyed (8) 40 Value Destroyed (162) 162 Prototype IDs (0) 0 Alien Tech Used (0) 0 Bonus (0) 0 TOTAL SCORE: 402 Bonus ------- None Cogmind --------- Core Integrity 0/250 Matter 300/300 Energy 100/100 System Corruption 2% Temperature Cool (9) Movement Core (550) Ox10 Location -10/Materials Parts ------- > --- POWER (1) -------- (None) > --- PROPULSION (2) --- (None) > --- UTILITY (2) ------ High-capacity Storage Unit Core Shielding > --- WEAPON (2) ------- (None) > --- INVENTORY (12) --- Ion Engine Light Ion Engine Aluminum Leg Aluminum Leg Small Storage Unit Visual Processing Unit Light Assault Rifle Peak State ------------ > --- POWER ------------ Ion Engine > --- PROPULSION ------- Aluminum Leg Aluminum Leg > --- UTILITY ---------- Small Storage Unit High-capacity Storage Unit > --- WEAPON ----------- Assault Rifle Assault Rifle > --- INVENTORY -------- Light Ion Engine Mining Laser [Rating: 7] Favorites ----------- Power Ion Engine Engine Ion Engine Propulsion Aluminum Leg Leg Aluminum Leg Utility High-capacity Storage Unit Storage High-capacity Storage Unit Protection Core Shielding Weapon Assault Rifle Ballistic Gun Assault Rifle Special Weapon Mining Laser Build | -11 -10 ------- Run | Scr Mat Slots Evolved . | . . Power . | . . Propulsion . | . . Utility . | . . Weapon . | . . Parts Attached 11 | 6 5 Power 1 | 1 . Engine 1 | 1 . Core . | . . Reactor . | . . Propulsion 2 | 2 . Treads . | . . Leg 2 | 2 . Wheel . | . . Hover . | . . Flight . | . . Utility 4 | 1 3 Device . | . . Storage 3 | 1 2 Processor . | . . Hackware . | . . Protection 1 | . 1 Artifact . | . . Weapon 4 | 2 2 Energy Gun . | . . Energy Cannon . | . . Ballistic Gun 3 | 2 1 Ballistic Cannon . | . . Launcher . | . . Special Weapon 1 | . 1 Impact Weapon . | . . Slashing Weapon . | . . Piercing Weapon . | . . Special Melee Weapon . | . . Unidentified Prototypes . | . . Parts Lost 6 | . 6 Power 1 | . 1 Propulsion 2 | . 2 Utility . | . . Weapon 3 | . 3 Highest Loss Streak 5 | . 5 Average Slot Usage (%) 92 | . 92 Engine 13 | . 13 Leg 25 | . 25 Storage 20 | . 20 Protection 7 | . 7 Ballistic Gun 23 | . 23 Special Weapon 1 | . 1 Naked Turns . | . . Heaviest Build 45 | 13 45 Greatest Support 20 | 20 20 Greatest Overweight (x) 3 | . 3 Average Overweight (x) 1 | . 1 Largest Inventory Capacity 14 | 6 14 Average Capacity 11 | 4 12 Most Carried 7 | 4 7 Average Carried 3 | 1 4 Final Capacity 12 | 6 12 Final Carried 7 | 1 7 Class Distribution -------------------- 100% | Mutant Dominant Class ---------------- Mutant | -10/Materials Resources | -11 -10 ----------- Run | Scr Mat Matter Collected 354 | 260 94 Remotely . | . . Salvage Created 208 | . 208 Parts 15 | . 15 Haulers Intercepted . | . . Recyclers Shooed . | . . Parts Field Recycled . | . . Retrieved Matter . | . . Parts Self-Destructed . | . . Prevented . | . . Kills | -11 -10 ------- Run | Scr Mat Combat Hostiles Destroyed 6 | . 6 Guns 6 | . 6 Classes Destroyed 4 | . 4 Worker 1 | . 1 Watcher 1 | . 1 Swarmer 3 | . 3 Grunt 3 | . 3 Best Kill Streak 5 | . 5 Combat Bots Only 3 | . 3 Max Kills in Single Turn 1 | . 1 Gunslinging . | . . Exploded . | . . Melee . | . . Uniques/NPCs Destroyed . | . . Combat | -11 -10 -------- Run | Scr Mat Damage Taken 1226 | . 1226 Core 252 | . 252 Absorbed by Shields . | . . Core Remaining (%) 100 | 100 . Volleys Fired 37 | . 37 Largest 2 | . 2 Hottest 100 | . 100 Shots Fired 54 | . 54 Gun 41 | . 41 Cannon . | . . Launcher . | . . Special 13 | . 13 Kinetic 41 | . 41 Thermal 13 | . 13 Explosive . | . . Electromagnetic . | . . Robot Hit Streak 4 | . 4 Robot Miss Streak 3 | . 3 Penetration Max . | . . Secondary Targets 1 | . 1 Max Gunslinging Chain 1 | . 1 Shots Hit Robots 21 | . 21 Core Hits 15 | . 15 Critical Hits . | . . Critical Kills . | . . Critical Parts Destroyed . | . . Melee Attacks . | . . Impact . | . . Slashing . | . . Piercing . | . . Sneak Attacks . | . . Combat Hostiles . | . . Follow-up Attacks . | . . Damage Inflicted 291 | . 291 Guns 279 | . 279 Cannons . | . . Explosions . | . . Melee . | . . Ramming 12 | . 12 Kinetic 279 | . 279 Thermal . | . . Explosive . | . . Electromagnetic . | . . Impact . | . . Slashing . | . . Piercing . | . . Highest Corruption 2 | . 2 Average Corruption 2 | . 2 Corruption Purged . | . . Effects 2 | . 2 Heat Flow Errors 1 | . 1 Weapon Failures 1 | . 1 Overload Shots . | . . Overflow Damage . | . . Projectiles . | . . Explosions . | . . Melee . | . . Knockbacks . | . . Impact . | . . Kinetic . | . . Secondary . | . . Self-Inflicted Damage 3 | . 3 Shots . | . . Rammed 13 | . 13 Targets Rammed 14 | . 14 Kicked 1 | . 1 Crushed . | . . Highest Temperature 151 | . 151 Average Temperature 23 | . 23 Received Heat Transfer 408 | . 408 Siege Activations . | . . Robots Corrupted . | . . Combat Hostiles . | . . Parts Fried . | . . Impact Corruptions . | . . Robots Melted . | . . Combat Hostiles . | . . Parts Melted . | . . Heat Transferred . | . . Parts Sabotaged . | . . Parts Stolen . | . . Parts Stripped . | . . Power Chain Reactions . | . . Missiles Intercepted . | . . Alert | -11 -10 ------- Run | Scr Mat Peak Influence 107 | . 107 Initial . | . . Average 19 | . 21 Maximum Alert Level . | . . Low Security (%) 100 | 100 100 Level 1 . | . . Level 2 . | . . Level 3 . | . . Level 4 . | . . Level 5 . | . . High Security . | . . Max Security . | . . Squads Dispatched 1 | . 1 Investigation 1 | . 1 Extermination . | . . Reinforcement . | . . Assault . | . . Garrison . | . . Intercept . | . . Construction Impeded . | . . Haulers Reinforced . | . . Stealth | -11 -10 --------- Run | Scr Mat Distress Signals 1 | . 1 Communications Jammed . | . . Distress Signals . | . . Times Spotted 10 | . 10 Peak Tracking Total 4 | . 4 Tactical Retreats 1 | . 1 Traps | -11 -10 ------- Run | Scr Mat Traps Triggered 1 | . 1 Indirectly . | . . Trap Hack Attempts . | . . Triggered . | . . Disarmed . | . . Reprogrammed . | . . Reused . | . . Traps Extracted . | . . Installed . | . . Triggered . | . . Machines | -11 -10 ---------- Run | Scr Mat Machines Disabled . | . . Max in Single Turn . | . . Machines Sabotaged . | . . Garrisons Compromised . | . . Overloaded Fab Kills . | . . Fab Network Shutdowns . | . . Hacking | -11 -10 --------- Run | Scr Mat Machines Accessed 2 | . 2 Terminals 2 | . 2 Fabricators . | . . Repair Stations . | . . Recycling Units . | . . Scanalyzers . | . . Garrison Access . | . . Total Hacks 5 | . 5 Successful 4 | . 4 Failed 1 | . 1 Catastrophic 1 | . 1 Database Lockouts . | . . Manual 4 | . 4 Terminals 5 | . 5 Fabricators . | . . Repair Stations . | . . Recycling Units . | . . Scanalyzers . | . . Garrison Access . | . . Terminal Hacks 4 | . 4 Record 1 | . 1 Unreport Threat 2 | . 2 Locate Traps 1 | . 1 Fabricator Hacks . | . . Repair Station Hacks . | . . Recycling Unit Hacks . | . . Scanalyzer . | . . Garrison Access Hacks . | . . Unauthorized Hacks . | . . Terminals . | . . Fabricators . | . . Repair Stations . | . . Recycling Units . | . . Scanalyzers . | . . Garrison Access . | . . Data Cores Recovered . | . . Used . | . . Hacking Detections 1 | . 1 Full Trace Events . | . . Feedback Events . | . . Feedback Blocked . | . . Robot Schematics Acquired . | . . Robots Built . | . . Matter . | . . Time . | . . Total Robot Build Rating . | . . Part Schematics Acquired . | . . Parts Built . | . . Matter . | . . Time . | . . Total Part Build Rating . | . . Parts Repaired . | . . Time . | . . Parts Recycled . | . . Recycled Matter . | . . Retrieved Matter . | . . Retrieved Components . | . . Parts Scanalyzed . | . . Part Schematics Acquired . | . . Parts Damaged . | . . Bothacking | -11 -10 ------------ Run | Scr Mat Used RIF Installer . | . . Robots Hacked . | . . Non-combat . | . . Combat . | . . Robot Hacks Applied . | . . Relay Couplers Released . | . . Robots Rewired . | . . Allies Hacked . | . . Hacks Repelled . | . . Allies | -11 -10 -------- Run | Scr Mat Total Allies . | . . Largest Group . | . . Highest-Rated Group . | . . Highest-Rated Ally . | . . Total Orders . | . . Ally Attacks . | . . Total Damage . | . . Kills . | . . Allies Corrupted . | . . Allies Melted . | . . Intel | -11 -10 ------- Run | Scr Mat Robot Analysis Total . | . . Derelict Logs Recovered . | . . Drone Launches . | . . Drone Recoveries . | . . Exploration | -11 -10 ------------- Run | Scr Mat Turns Passed 759 | 65 694 Spaces Moved 325 | 49 276 Core 8 | 8 . Treads . | . . Legs 317 | 41 276 Wheels . | . . Hover . | . . Flight . | . . Fastest Speed 50 | 50 120 Average Speed 165 | 108 175 Slowest Speed 210 | 120 210 Overloaded Moves . | . . Propulsion Burnouts . | . . Robots Hopped . | . . Cave-ins Triggered 1 | . 1 Exploration Rate (%) 14 | 4 24 Regions Visited 1 Branch Regions . Pre-discovered Areas . | . . Known Exits Taken . | . . Unknown Exits Taken 1 | 1 . Scrap Searched . | . . Spaces Dug 13 | . 13 Terrain Destroyed 13 | . 13 Melee . | . . Projectile 13 | . 13 AOE . | . . Terrain Rammed . | . . Walls Destroyed . | . . Machines Disabled . | . . Actions | -11 -10 --------- Run | Scr Mat Total 431 | 61 370 Wait 28 | . 28 Move 324 | 48 276 Hop . | . . Pick Up 15 | 7 8 Fast Attach . | . . Attach 10 | 6 4 Detach 2 | . 2 Swap 1 | . 1 Drop . | . . Fire 37 | . 37 Melee . | . . Ram 7 | . 7 Kick 7 | . 7 Crush . | . . Escape Stasis . | . . Rewire . | . . Trap . | . . Miscellaneous . | . . Route ------- -11/Scrapyard -10/Materials History --------- Turn | Location | Event 5 | -11/Scrapyard | Discovered new exit (range 15) 66 | -11/Scrapyard | Entered Materials 185 | -10/Materials | Crushed by falling debris 307 | -10/Materials | Build established: Mutant 731 | -10/Materials | Core integrity fell below 50% 747 | -10/Materials | Core integrity fell below 20% 757 | -10/Materials | Lost 5 parts (1p2n2w) 760 | -10/Materials | Destroyed by G-47 Trooper with Particle Gun Last Messages --------------- 00629_ An alarm sounds. 00629_ ALERT: Alarm triggered, dispatching investigation squad. 00635_ K-01 Serf collects debris. 00641_ U-05 Engineer lays Concrete. 00646_ K-01 Serf collects debris. 00674_ Assault Rifle destroyed. 00680_ G-34 Mercenary destroyed. 00680_ K-01 Serf collects debris. 00684_ Aluminum Leg destroyed. 00685_ K-01 Serf collects debris. 00702_ Connecting with Terminal... >>Alert(Purge) Purged threat record, alert level lowered. 00708_ Assault Rifle destroyed. 00712_ Slammed into G-47 Trooper. 00722_ Ion Engine destroyed. 00722_ Kicked G-47 Trooper out of the way. 00724_ Slammed into G-47 Trooper. 00726_ Aluminum Leg destroyed. 00726_ Slammed into G-47 Trooper. Map ----- +----------------------------------------------------+ | ????????????????# #??????????????????????????????? | | ????????????????# #??????????????????????????????? | | ????????????????# #??????????????????????????????? | | ????????????????# #??????????????????????????????? | | ????????????????# #??????????????????????????????? | | ????????????????# #??????????????????????????????? | | ????????????????# #??????????????????????????????? | | #+############### ##?????????????????????????????? | | #?????????????????????????????? | | #?????????????????????????????? | | #?????????????????????????????? | | #/#####+#### #######?????????????????????????????? | | ????? ???# #???????????????????????????????????? | | ???? ""????#+########????????????????????????????? | | ???" "?????#%! #????????????????????????????? | | ??"" ??????# """ #????????????????????????????? | | ? ??????# """ #????????????????????????????? | | ?? ???????# """ #????????????????????????????? | | ? ?????????# = #????????????????????????????? | | ?#########?# =!! #????????????????????????????? | | ?# #?# !! #????????????????????????????? | | ?# " #?# !! #######??????????????????????? | | ?# """ #?# ## T #??????????????????????? | | ?# """ #######"##### #??????????????????????? | | ?# """ # #??# #??????????????????????? | | ?# "" + #### =g@#??????????????????????? | | ?# """ # + #??????????????????????? | | ?# "" # # #??????????????????????? | | ?# "" # """ # !!!#??????????????????????? | | ?# " # """ # !!!#??????????????????????? | | ?# # """ # !!!#??????????????????????? | | ?######### !""" ######??????????????????????? | | ?# #% """ ##??????????????????????????? | | ?# """ # ! T#??????????????????????????? | | ?# """ / ######??????????????????????? | | ?# """ # # #??????????????????????? | | ?# # # #??????????????????????? | | ?# """ ####### # #??????????????????????? | | ?# """ #?????# + #??????????????????????? | | ?# """ #?????######## #??????????????????????? | | ?# #????????????# ####???????????????????? | | ?# #????????????# # #???????????????????? | | ?# #????????????# # #???????????????????? | | ?########????????????# # #???????????????????? | | ?????????????????????###### #???????????????????? | | | | | | | | | | | +----------------------------------------------------+ Best States ------------- Heat Dissipation 25 Energy Generation 10 Energy Capacity 250 Matter Stores 300 Matter Capacity 300 Sight Range 16 Terrain Scan Density 10 Core Shielding 20 Evasion (%) 40 Item Schematics ----------------- None Robot Schematics ------------------ None Fabricated ------------ Nothing Alien Tech Used ----------------- None Achievements -------------- Unlikely Earthworm Challenges ------------ None Game ------ Seed StructuralCloakBeam Manual? 0 Play Time 00:17:28 Cumulative 1.6 hours Start 2020.10.30 @ 04:42:00 End 2020.10.30 @ 05:09:22 Sessions 1 Manual Loads 0 Difficulty Rogue Special Mode None Game No. 3 Rogue 3 Adventurer 0 Explorer 0 Win Type - Total 0 Types 0/0/0/0/0/0/0/0/0 Lore% 1 Gallery% 4 Achievement% 5 Wizard Run 0 Options --------- ASCII 0 Keyboard 1 Movement Numpad Keybinds 0 Fullscreen 2 Font 18/SmallcapsGlow Map View 76x50 Tactical HUD 1 Map Filters NONE Filters LOW_CONTRAST(12,6,10) Steam 1 RUN: 65ceab0d-b111-433d-bf5a-5d532e3e88eb